fUSD/lending_fUSD_20241121
["ID","MTS","AMOUNT","RATE_DAILY","PERIOD"]
[342884499,1732193454871,-1035.2,0.00041369,18]
[342884500,1732193454880,-647.8,0.00041369,18]
[342884501,1732193454890,-500.0,0.00041369,18]
[342884502,1732193454899,-500.0,0.00041369,18]
[342884503,1732193454910,-500.0,0.00041369,18]
[342884504,1732193454919,-500.0,0.00041369,18]
[342884505,1732193454928,-500.0,0.00041369,18]
[342884506,1732193454938,-500.0,0.00041369,18]
[342884507,1732193454947,-796.66,0.00041369,18]
[342884508,1732193454958,-672.69,0.00041369,18]
[342884509,1732193454967,-500.0,0.00041369,18]
[342884510,1732193454976,-500.0,0.00041369,18]
[342884511,1732193454986,-662.24,0.00041369,18]
[342884512,1732193454995,-749.93,0.00041369,18]
[342884513,1732193455004,-500.0,0.00041369,18]
[342884514,1732193455014,-796.31,0.00041369,18]
[342884515,1732193455023,-982.89,0.00041369,18]
[342884516,1732193455032,-500.0,0.00041369,18]
[342884517,1732193455043,-500.0,0.00041369,18]
[342884518,1732193455055,-928.18,0.00041369,18]
[342884519,1732193455064,-332.13,0.00041369,18]
[342884520,1732193455074,-716.66,0.00041369,18]
[342884521,1732193455083,-500.0,0.00041369,18]
[342884522,1732193455094,-500.0,0.00041369,18]
[342884523,1732193455103,-500.0,0.00041369,18]
[342884524,1732193455115,-500.0,0.00041369,18]
[342884525,1732193455125,-1599.91,0.00041369,18]
[342884526,1732193455134,-513.36,0.00041369,18]
[342884527,1732193455144,-500.0,0.00041369,18]
[342884528,1732193455153,-525.37,0.00041369,18]
[342884529,1732193455162,-1042.34,0.00041369,18]
[342884530,1732193455172,-556.05,0.00041369,18]
[342884531,1732193455181,-500.0,0.00041369,18]
[342884532,1732193455191,-500.0,0.00041369,18]
[342884533,1732193455201,-500.0,0.00041369,18]
[342884534,1732193455211,-751.29,0.00041369,120]
[342884535,1732193455220,-500.0,0.00041369,18]
[342884536,1732193455229,-500.0,0.00041369,18]
[342884537,1732193455239,-500.0,0.00041369,18]
[342884538,1732193455249,-889.44,0.00041369,18]
[342884539,1732193455259,-500.0,0.00041369,18]
[342884540,1732193455268,-1153.16,0.00041369,18]
[342884541,1732193455278,-500.0,0.00041369,18]
[342884542,1732193455287,-500.0,0.00041369,18]
[342884543,1732193455297,-500.0,0.00041369,18]
[342884544,1732193455307,-500.0,0.00041369,18]
[342884545,1732193455316,-690.57,0.00041369,18]
[342884546,1732193455326,-500.0,0.00041369,18]
[342884547,1732193455336,-500.0,0.00041369,18]
[342884548,1732193455346,-500.0,0.00041369,18]
[342884549,1732193455355,-500.0,0.00041369,18]
[342884550,1732193455368,-752.18,0.00041369,18]
[342884551,1732193455377,-500.0,0.00041369,18]
[342884552,1732193455387,-500.0,0.00041369,18]
[342884553,1732193455397,-1355.88,0.00041369,18]
[342884554,1732193455406,-500.0,0.00041369,18]
[342884555,1732193455415,-500.0,0.00041369,18]
[342884556,1732193455424,-1305.13,0.00041369,18]
[342884557,1732193455433,-890.02,0.00041369,7]
[342884558,1732193455443,-500.0,0.00041369,18]
[342884559,1732193455452,-457.36941322,0.00041369,18]
[342884560,1732193455461,-2684.63,0.00041369,18]
[342884561,1732193455471,-181.81430941,0.00041369,18]
[342884562,1732193455480,-500.0,0.00041369,18]
[342884563,1732193455489,-500.0,0.00041369,18]
[342884564,1732193455498,-500.0,0.00041369,18]
[342884565,1732193455508,-781.53,0.00041369,18]
[342884566,1732193455517,-500.0,0.00041369,18]
[342884567,1732193455527,-551.41,0.00041369,18]
[342884568,1732193455537,-500.0,0.00041369,18]
[342884569,1732193455546,-585.82,0.00041369,18]
[342884570,1732193455555,-1121.83,0.00041369,18]
[342884571,1732193455565,-536.18,0.00041369,18]
[342884572,1732193455574,-710.8,0.00041369,18]
[342884573,1732193455583,-500.0,0.00041369,18]
[342884574,1732193455592,-861.58,0.00041369,18]
[342884575,1732193455602,-2079.25,0.00041369,18]
[342884576,1732193455614,-500.0,0.00041369,18]
[342884577,1732193455623,-500.0,0.00041369,18]
[342884578,1732193455633,-500.0,0.00041369,18]
[342884579,1732193455643,-500.0,0.00041369,18]
[342884580,1732193455652,-500.0,0.00041369,18]
[342884581,1732193455661,-500.0,0.00041369,18]
[342884582,1732193455671,-500.0,0.00041369,18]
[342884583,1732193455680,-583.87,0.00041369,18]
[342884584,1732193455690,-500.0,0.00041369,18]
[342884585,1732193455699,-864.0,0.00041369,18]
[342884586,1732193455709,-500.0,0.00041369,18]
[342884587,1732193455718,-500.0,0.00041369,18]
[342884588,1732193455727,-811.04,0.00041369,18]
[342884589,1732193455736,-500.0,0.00041369,18]
[342884590,1732193455745,-985.19,0.00041369,18]
[342884591,1732193455755,-500.0,0.00041369,18]
[342884592,1732193455764,-500.0,0.00041369,18]
[342884593,1732193455772,-500.0,0.00041369,18]
[342884594,1732193455782,-500.0,0.00041369,18]
[342884595,1732193455791,-500.0,0.00041369,18]
[342884596,1732193455800,-500.0,0.00041369,18]
[342884597,1732193455810,-500.0,0.00041369,18]
[342884598,1732193455820,-879.85,0.00041369,18]
[342884599,1732193455828,-661.33,0.00041369,18]
[342884600,1732193455838,-500.0,0.00041369,18]
[342884601,1732193455847,-508.23654196,0.00041369,18]
[342884602,1732193455857,-780.38,0.00041369,18]
[342884603,1732193455869,-500.0,0.00041369,18]
[342884604,1732193455879,-587.0,0.00041369,18]
[342884605,1732193455888,-500.0,0.00041369,18]
[342884606,1732193455897,-1744.06,0.00041369,18]
[342884607,1732193455907,-1000.0,0.00041369,5]
[342884608,1732193455916,-500.0,0.00041369,18]
[342884609,1732193455925,-500.0,0.00041369,18]
[342884610,1732193455935,-639.27,0.00041369,18]
[342884611,1732193455944,-500.0,0.00041369,18]
[342884612,1732193455953,-500.0,0.00041369,18]
[342884613,1732193455963,-822.09,0.00041369,18]
[342884614,1732193455972,-1554.77,0.00041369,18]
[342884615,1732193455982,-500.0,0.00041369,18]
[342884616,1732193455991,-500.0,0.00041369,18]
[342884617,1732193456001,-687.6,0.00041369,18]
[342884618,1732193456011,-500.0,0.00041369,18]
[342884619,1732193456020,-672.87,0.00041369,18]
[342884620,1732193456029,-656.21,0.00041369,18]
[342884621,1732193456039,-500.0,0.00041369,18]
[342884622,1732193456051,-500.0,0.00041369,18]
[342884623,1732193456060,-500.0,0.00041369,18]
[342884624,1732193456071,-500.0,0.00041369,18]
[342884625,1732193456083,-820.87,0.00041369,18]
[342884626,1732193456092,-500.0,0.00041369,18]
[342884627,1732193456102,-500.0,0.00041369,18]
[342884628,1732193456116,-500.0,0.00041369,18]
[342884629,1732193456127,-2242.03,0.00041369,18]
[342884630,1732193456137,-534.64639259,0.00041369,18]
[342884631,1732193456146,-864.49,0.00041369,18]
[342884632,1732193456155,-500.0,0.00041369,18]
[342884633,1732193456165,-500.0,0.00041369,18]
[342884634,1732193456175,-1710.98,0.00041369,18]
[342884635,1732193456185,-500.0,0.00041369,18]
[342884636,1732193456194,-500.0,0.00041369,18]
[342884637,1732193456204,-2945.64,0.00041369,18]
[342884638,1732193456214,-500.0,0.00041369,18]
[342884639,1732193456224,-500.0,0.00041369,18]
[342884640,1732193456233,-500.0,0.00041369,18]
[342884641,1732193456243,-500.0,0.00041369,18]
[342884642,1732193456252,-500.0,0.00041369,18]
[342884643,1732193456262,-1329.94,0.00041369,18]
[342884644,1732193456271,-500.0,0.00041369,18]
[342884645,1732193456281,-565.97,0.00041369,18]
[342884646,1732193456291,-2673.22,0.00041369,18]
[342884647,1732193456300,-500.0,0.00041369,18]
[342884648,1732193456310,-500.0,0.00041369,18]
[342884649,1732193456320,-500.0,0.00041369,18]
[342884650,1732193456329,-688.51,0.00041369,18]
[342884651,1732193456339,-500.0,0.00041369,18]
[342884652,1732193456348,-1288.56,0.00041369,18]
[342884653,1732193456357,-500.0,0.00041369,18]
[342884654,1732193456370,-537.09,0.00041369,18]
[342884655,1732193456379,-2144.77,0.00041369,18]
[342884656,1732193456389,-500.0,0.00041369,18]
[342884657,1732193456398,-996.01,0.00041369,18]
[342884658,1732193456408,-626.16,0.00041369,18]
[342884659,1732193456417,-500.0,0.00041369,18]
[342884660,1732193456427,-500.0,0.00041369,18]
[342884661,1732193456436,-558.68,0.00041369,18]
[342884662,1732193456445,-500.0,0.00041369,18]
[342884663,1732193456455,-500.0,0.00041369,18]
[342884664,1732193456465,-940.29,0.00041369,18]
[342884665,1732193456474,-500.0,0.00041369,18]
[342884666,1732193456484,-1122.32,0.00041369,18]
[342884667,1732193456493,-606.44,0.00041369,18]
[342884668,1732193456502,-845.45,0.00041369,18]
[342884669,1732193456513,-500.0,0.00041369,18]
[342884670,1732193456522,-737.88,0.00041369,18]
[342884671,1732193456531,-711.26,0.00041369,18]
[342884672,1732193456540,-500.0,0.00041369,18]
[342884673,1732193456549,-518.26,0.00041369,18]
[342884674,1732193456558,-2681.19,0.00041369,18]
[342884675,1732193456568,-500.0,0.00041369,18]
[342884676,1732193456577,-500.0,0.00041369,18]
[342884677,1732193456587,-500.0,0.00041369,18]
[342884678,1732193456596,-1502.52,0.00041369,18]
[342884679,1732193456605,-952.89,0.00041369,18]
[342884680,1732193456619,-575.82742787,0.00041369,18]
[342884681,1732193456630,-1521.88,0.00041369,18]
[342884682,1732193456640,-500.0,0.00041369,18]
[342884683,1732193456649,-821.19,0.00041369,18]
[342884684,1732193456658,-500.0,0.00041369,18]
[342884685,1732193456668,-2090.41,0.00041369,18]
[342884686,1732193456677,-420.70416906,0.00041369,18]
[342884687,1732193456687,-244.76253492,0.00041369,18]
[342884688,1732193456696,-1062.64,0.00041369,18]
[342884689,1732193456706,-764.24,0.00041369,18]
[342884690,1732193456716,-500.33390206,0.00041369,18]
[342884691,1732193456725,-3912.05,0.00041369,18]
[342884692,1732193456734,-1343.71,0.00041369,18]
[342884693,1732193456744,-589.28,0.00041369,18]
[342884694,1732193456754,-500.0,0.00041369,18]
[342884695,1732193456763,-500.0,0.00041369,18]
[342884696,1732193456773,-500.0,0.00041369,18]
[342884697,1732193456782,-698.8,0.00041369,18]
[342884698,1732193456792,-500.0,0.00041369,18]
[342884699,1732193456801,-500.0,0.00041369,18]
[342884700,1732193456811,-500.0,0.00041369,18]
[342884701,1732193456821,-726.8,0.00041369,18]
[342884702,1732193456830,-1664.59,0.00041369,7]
[342884703,1732193456839,-500.0,0.00041369,14]
[342884704,1732193456849,-501.77,0.00041369,18]
[342884705,1732193456859,-500.0,0.00041369,18]
[342884706,1732193456874,-1564.67,0.00041369,18]
[342884707,1732193456883,-1282.42,0.00041369,18]
[342884708,1732193456892,-646.78,0.00041369,18]
[342884709,1732193456901,-500.0,0.00041369,18]
[342884710,1732193456910,-500.0,0.00041369,18]
[342884711,1732193456920,-500.0,0.00041369,18]
[342884712,1732193456929,-500.0,0.00041369,18]
[342884713,1732193456938,-836.41,0.00041369,18]
[342884714,1732193456947,-500.0,0.00041369,18]
[342884715,1732193456957,-500.0,0.00041369,18]
[342884716,1732193456966,-1119.3,0.00041369,18]
[342884717,1732193456975,-500.0,0.00041369,18]
[342884718,1732193456984,-1046.11,0.00041369,18]
[342884719,1732193456992,-500.0,0.00041369,18]
[342884720,1732193457002,-500.0,0.00041369,2]
[342884721,1732193457011,-500.0,0.00041369,18]
[342884722,1732193457020,-500.0,0.00041369,18]
[342884723,1732193457029,-500.0,0.00041369,18]
[342884724,1732193457040,-500.0,0.00041369,18]
[342884725,1732193457052,-500.0,0.00041369,18]
[342884726,1732193457061,-500.0,0.00041369,18]
[342884727,1732193457071,-500.0,0.00041369,18]
[342884728,1732193457080,-547.65,0.00041369,18]
[342884729,1732193457090,-500.0,0.00041369,18]
[342884730,1732193457100,-500.0,0.00041369,18]
[342884731,1732193457109,-500.0,0.00041369,18]
[342884732,1732193457124,-1651.28,0.00041369,18]
[342884733,1732193457134,-1037.5,0.00041369,18]
[342884734,1732193457143,-500.0,0.00041369,18]
[342884735,1732193457152,-500.0,0.00041369,18]
[342884736,1732193457161,-500.0,0.00041369,18]
[342884737,1732193457171,-500.0,0.00041369,18]
[342884738,1732193457180,-1523.03,0.00041369,18]
[342884739,1732193457190,-500.73,0.00041369,18]
[342884740,1732193457199,-2155.21,0.00041369,18]
[342884741,1732193457209,-500.0,0.00041369,18]
[342884742,1732193457218,-595.81958249,0.00041369,18]
[342884743,1732193457228,-1553.55,0.00041369,18]
[342884744,1732193457373,-1543.58,0.00041369,18]
[342884745,1732193457382,-587.28,0.00041369,18]
[342884746,1732193457393,-500.0,0.00041369,18]
[342884747,1732193457405,-782.96,0.00041369,18]
[342884748,1732193457416,-500.0,0.00041369,18]
[342884749,1732193457427,-500.0,0.00041369,18]
[342884750,1732193457438,-1689.71,0.00041369,18]
[342884751,1732193457448,-500.0,0.00041369,18]
[342884752,1732193457458,-507.85,0.00041369,18]
[342884753,1732193457468,-500.0,0.00041369,18]
[342884754,1732193457477,-887.67,0.00041369,18]
[342884755,1732193457487,-761.94,0.00041369,18]
[342884756,1732193457497,-1661.07,0.00041369,18]
[342884757,1732193457507,-500.0,0.00041369,18]
[342884758,1732193457516,-500.0,0.00041369,18]
[342884759,1732193457525,-500.0,0.00041369,18]
[342884760,1732193457535,-500.0,0.00041369,18]
[342884761,1732193457545,-973.81,0.00041369,18]
[342884762,1732193457554,-634.93,0.00041369,18]
[342884763,1732193457564,-500.0,0.00041369,18]
[342884764,1732193457573,-1621.46,0.00041369,18]
[342884765,1732193457582,-634.27,0.00041369,18]
[342884766,1732193457592,-500.0,0.00041369,18]
[342884767,1732193457602,-388.89226965,0.00041369,18]
[342884768,1732193457612,-1950.66,0.00041369,18]
[342884769,1732193457624,-2151.89,0.00041369,18]
[342884770,1732193457634,-500.0,0.00041369,18]
[342884771,1732193457647,-500.0,0.00041369,18]
[342884772,1732193457657,-500.0,0.00041369,18]
[342884773,1732193457667,-199.66,0.00041369,18]
[342884774,1732193457676,-500.0,0.00041369,18]
[342884775,1732193457686,-500.0,0.00041369,18]
[342884776,1732193457695,-500.0,0.00041369,18]
[342884777,1732193457704,-1283.69,0.00041369,18]
[342884778,1732193457714,-1800.7,0.00041369,18]
[342884779,1732193457723,-555.01,0.00041369,18]
[342884780,1732193457733,-500.0,0.00041369,18]
[342884781,1732193457743,-966.2,0.00041369,18]
[342884782,1732193457752,-500.0,0.00041369,18]
[342884783,1732193457762,-500.0,0.00041369,18]
[342884784,1732193457771,-866.93,0.00041369,18]
[342884785,1732193457780,-629.53,0.00041369,18]
[342884786,1732193457790,-500.0,0.00041369,18]
[342884787,1732193457800,-500.0,0.00041369,18]
[342884788,1732193457809,-500.13055371,0.00041369,18]
[342884789,1732193457819,-500.0,0.00041369,18]
[342884790,1732193457828,-500.0,0.00041369,18]
[342884791,1732193457838,-500.0,0.00041369,18]
[342884792,1732193457847,-500.0,0.00041369,18]
[342884793,1732193457856,-500.0,0.00041369,18]
[342884794,1732193457869,-500.0,0.00041369,18]
[342884795,1732193457878,-1667.95,0.00041369,18]
[342884796,1732193457888,-382.73271687,0.00041369,18]
[342884797,1732193457897,-684.17,0.00041369,18]
[342884798,1732193457907,-500.0,0.00041369,18]
[342884799,1732193457917,-678.25,0.00041369,18]
[342884800,1732193457926,-500.0,0.00041369,18]
[342884801,1732193457936,-500.0,0.00041369,18]
[342884802,1732193457945,-500.0,0.00041369,18]
[342884803,1732193457954,-500.0,0.00041369,18]
[342884804,1732193457963,-500.0,0.00041369,18]
[342884805,1732193457973,-500.0,0.00041369,18]
[342884806,1732193457982,-1917.64,0.00041369,18]
[342884807,1732193457991,-500.0,0.00041369,18]
[342884808,1732193458000,-533.52,0.00041369,18]
[342884809,1732193458010,-500.0,0.00041369,18]
[342884810,1732193458019,-2686.07,0.00041369,18]
[342884811,1732193458029,-500.0,0.00041369,18]
[342884812,1732193458038,-1035.49,0.00041369,18]
[342884813,1732193458048,-1010.02,0.00041369,18]
[342884814,1732193458060,-500.0,0.00041369,18]
[342884815,1732193458069,-620.3,0.00041369,18]
[342884816,1732193458079,-707.45,0.00041369,18]
[342884817,1732193458088,-1372.53,0.00041369,18]
[342884818,1732193458097,-500.0,0.00041369,18]
[342884819,1732193458107,-2598.42,0.00041369,18]
[342884820,1732193458120,-500.0,0.00041369,18]
[342884821,1732193458131,-500.0,0.00041369,18]
[342884822,1732193458141,-500.0,0.00041369,18]
[342884823,1732193458150,-734.73,0.00041369,18]
[342884824,1732193458160,-500.0,0.00041369,18]
[342884825,1732193458169,-500.0,0.00041369,18]
[342884826,1732193458178,-736.28,0.00041369,18]
[342884827,1732193458188,-580.85,0.00041369,18]
[342884828,1732193458198,-1128.94,0.00041369,18]
[342884829,1732193458208,-500.0,0.00041369,18]
[342884830,1732193458217,-500.0,0.00041369,18]
[342884831,1732193458227,-500.0,0.00041369,18]
[342884832,1732193458237,-2507.83,0.00041369,18]
[342884833,1732193458247,-500.0,0.00041369,18]
[342884834,1732193458256,-500.0,0.00041369,18]
[342884835,1732193458266,-939.08,0.00041369,18]
[342884836,1732193458276,-500.0,0.00041369,18]
[342884837,1732193458285,-500.0,0.00041369,18]
[342884838,1732193458294,-500.0,0.00041369,18]
[342884839,1732193458304,-561.7,0.00041369,18]
[342884840,1732193458313,-543.62,0.00041369,18]
[342884841,1732193458322,-500.0,0.00041369,18]
[342884842,1732193458332,-911.24,0.00041369,18]
[342884843,1732193458341,-500.0,0.00041369,18]
[342884844,1732193458351,-1228.07,0.00041369,18]
[342884845,1732193458360,-853.45,0.00041369,18]
[342884846,1732193458372,-500.0,0.00041369,18]
[342884847,1732193458381,-999.81,0.00041369,18]
[342884848,1732193458391,-650.91,0.00041369,18]
[342884849,1732193458401,-1093.33,0.00041369,18]
[342884850,1732193458410,-500.0,0.00041369,18]
[342884851,1732193458420,-590.22,0.00041369,18]
[342884852,1732193458429,-872.44,0.00041369,18]
[342884853,1732193458438,-1958.51,0.00041369,18]
[342884854,1732193458447,-2050.87,0.00041369,18]
[342884855,1732193458457,-500.0,0.00041369,18]
[342884856,1732193458466,-500.0,0.00041369,18]
[342884857,1732193458475,-2587.86,0.00041369,18]
[342884858,1732193458484,-716.66,0.00041369,18]
[342884859,1732193458494,-500.0,0.00041369,18]
[342884860,1732193458503,-500.0,0.00041369,18]
[342884861,1732193458513,-1854.83,0.00041369,18]
[342884862,1732193458522,-500.0,0.00041369,18]
[342884863,1732193458532,-1245.1,0.00041369,18]
[342884864,1732193458542,-2182.56,0.00041369,18]
[342884865,1732193458552,-500.0,0.00041369,18]
[342884866,1732193458562,-721.06,0.00041369,18]
[342884867,1732193458571,-500.0,0.00041369,18]
[342884868,1732193458581,-500.0,0.00041369,18]
[342884869,1732193458591,-681.05,0.00041369,18]
[342884870,1732193458601,-811.96,0.00041369,18]
[342884871,1732193458611,-1648.57,0.00041369,18]
[342884872,1732193458623,-2024.97,0.00041369,18]
[342884873,1732193458632,-3108.31,0.00041369,18]
[342884874,1732193458642,-869.48,0.00041369,18]
[342884875,1732193458652,-500.0,0.00041369,18]
[342884876,1732193458662,-500.0,0.00041369,18]
[342884877,1732193458672,-500.0,0.00041369,18]
[342884878,1732193458682,-627.77,0.00041369,18]
[342884879,1732193458692,-2127.16,0.00041369,18]
[342884880,1732193458702,-500.0,0.00041369,18]
[342884881,1732193458711,-500.0,0.00041369,18]
[342884882,1732193458721,-808.84,0.00041369,18]
[342884883,1732193458731,-2208.64,0.00041369,18]
[342884884,1732193458741,-500.0,0.00041369,18]
[342884885,1732193458750,-500.0,0.00041369,18]
[342884886,1732193458760,-500.0,0.00041369,18]
[342884887,1732193458770,-912.21,0.00041369,18]
[342884888,1732193458779,-657.58,0.00041369,18]
[342884889,1732193458789,-500.0,0.00041369,18]
[342884890,1732193458799,-955.78,0.00041369,18]
[342884891,1732193458808,-546.87,0.00041369,18]
[342884892,1732193458818,-700.0,0.00041369,18]
[342884893,1732193458827,-500.0,0.00041369,18]
[342884894,1732193458837,-500.0,0.00041369,18]
[342884895,1732193458846,-500.0,0.00041369,18]
[342884896,1732193458856,-1174.63,0.00041369,18]
[342884897,1732193458865,-500.0,0.00041369,18]
[342884898,1732193458878,-2130.31,0.00041369,18]
[342884899,1732193458888,-2041.6,0.00041369,18]
[342884900,1732193458898,-1476.28,0.00041369,18]
[342884901,1732193458908,-848.27,0.00041369,18]
[342884902,1732193458918,-1239.59,0.00041369,18]
[342884903,1732193458928,-500.0,0.00041369,18]
[342884904,1732193458937,-500.0,0.00041369,18]
[342884905,1732193458947,-1148.7,0.00041369,18]
[342884906,1732193458956,-1092.1,0.00041369,18]
[342884907,1732193458966,-500.0,0.00041369,18]
[342884908,1732193458975,-500.0,0.00041369,18]
[342884909,1732193458985,-500.0,0.00041369,18]
[342884910,1732193458995,-942.8,0.00041369,18]
[342884911,1732193459004,-618.83,0.00041369,18]
[342884912,1732193459014,-506.11835683,0.00041369,18]
[342884913,1732193459023,-1286.94,0.00041369,18]
[342884914,1732193459033,-500.0,0.00041369,18]
[342884915,1732193459043,-593.94,0.00041369,18]
[342884916,1732193459057,-347.49967125,0.00041369,18]
[342884917,1732193459067,-500.0,0.00041369,18]
[342884918,1732193459077,-500.0,0.00041369,18]
[342884919,1732193459088,-500.0,0.00041369,18]
[342884920,1732193459098,-2641.83,0.00041369,18]
[342884921,1732193459108,-344.10165428,0.00041369,18]
[342884922,1732193459120,-745.83,0.00041369,18]
[342884923,1732193459130,-500.0,0.00041369,18]
[342884924,1732193459141,-632.51,0.00041369,18]
[342884925,1732193459150,-502.18,0.00041369,18]
[342884926,1732193459160,-500.0,0.00041369,18]
[342884927,1732193459169,-500.0,0.00041369,18]
[342884928,1732193459179,-705.2,0.00041369,18]
[342884929,1732193459188,-500.0,0.00041369,18]
[342884930,1732193459198,-500.0,0.00041369,18]
[342884931,1732193459208,-500.0,0.00041369,18]
[342884932,1732193459218,-522.59,0.00041369,18]
[342884933,1732193459227,-1388.48,0.00041369,18]
[342884934,1732193459237,-696.16,0.00041369,18]
[342884935,1732193459248,-719.22,0.00041369,18]
[342884936,1732193459258,-1234.98,0.00041369,18]
[342884937,1732193459268,-500.0,0.00041369,18]
[342884938,1732193459278,-1165.53,0.00041369,18]
[342884939,1732193459287,-500.0,0.00041369,18]
[342884940,1732193459297,-696.97,0.00041369,18]
[342884941,1732193459306,-2307.43,0.00041369,18]
[342884942,1732193459315,-500.0,0.00041369,18]
[342884943,1732193459325,-500.0,0.00041369,18]
[342884944,1732193459335,-500.0,0.00041369,18]
[342884945,1732193459344,-4016.84,0.00041369,18]
[342884946,1732193459354,-1737.52,0.00041369,18]
[342884947,1732193459364,-500.0,0.00041369,18]
[342884948,1732193459376,-500.0,0.00041369,18]
[342884949,1732193459386,-500.0,0.00041369,18]
[342884950,1732193459395,-512.24907432,0.00041369,18]
[342884951,1732193459405,-500.0,0.00041369,18]
[342884952,1732193459414,-1014.81,0.00041369,18]
[342884953,1732193459423,-500.0,0.00041369,18]
[342884954,1732193459433,-877.32,0.00041369,18]
[342884955,1732193459442,-500.0,0.00041369,18]
[342884956,1732193459451,-500.0,0.00041369,18]
[342884957,1732193459461,-937.39,0.00041369,18]
[342884958,1732193459470,-500.0,0.00041369,18]
[342884959,1732193459479,-602.41,0.00041369,18]
[342884960,1732193459488,-345.85310359,0.00041369,18]
[342884961,1732193459498,-746.08,0.00041369,18]
[342884962,1732193459507,-500.0,0.00041369,18]
[342884963,1732193459516,-500.0,0.00041369,18]
[342884964,1732193459526,-646.8,0.00041369,18]
[342884965,1732193459536,-995.56,0.00041369,18]
[342884966,1732193459545,-500.0,0.00041369,18]
[342884967,1732193459554,-525.46,0.00041369,18]
[342884968,1732193459563,-233.80820249,0.00041369,18]
[342884969,1732193459573,-500.0,0.00041369,18]
[342884970,1732193459583,-1903.22,0.00041369,18]
[342884971,1732193459592,-1627.65,0.00041369,18]
[342884972,1732193459602,-500.0,0.00041369,18]
[342884973,1732193459612,-527.58,0.00041369,18]
[342884974,1732193459625,-500.0,0.00041369,18]
[342884975,1732193459635,-500.0,0.00041369,18]
[342884976,1732193459644,-500.0,0.00041369,18]
[342884977,1732193459959,-500.0,0.00041369,18]
[342884978,1732193459970,-500.0,0.00041369,18]
[342884979,1732193459979,-500.72,0.00041369,18]
[342884980,1732193459989,-500.0,0.00041369,18]
[342884981,1732193459999,-500.0,0.00041369,18]
[342884982,1732193460008,-940.29,0.00041369,18]
[342884983,1732193460018,-1714.7,0.00041369,18]
[342884984,1732193460028,-500.0,0.00041369,18]
[342884985,1732193460038,-500.0,0.00041369,18]
[342884986,1732193460053,-5841.48,0.00041369,18]
[342884987,1732193460064,-573.35531942,0.00041369,18]
[342884988,1732193460074,-541.79,0.00041369,18]
[342884989,1732193460085,-504.57,0.00041369,18]
[342884990,1732193460095,-500.0,0.00041369,18]
[342884991,1732193460105,-535.27,0.00041369,18]
[342884992,1732193460115,-500.0,0.00041369,18]
[342884993,1732193460130,-500.0,0.00041369,18]
[342884994,1732193460140,-620.78,0.00041369,18]
[342884995,1732193460149,-500.0,0.00041369,18]
[342884996,1732193460159,-500.0,0.00041369,18]
[342884997,1732193460170,-500.0,0.00041369,18]
[342884998,1732193460179,-500.0,0.00041369,18]